bitfinex/quotes_SOLUSD_20250625
["timestamp","ask_amount","ask_price","bid_price","bid_amount"]
[1750818042253,43.8776032,146.55,146.5,6.82562423]
[1750818042551,43.8776032,146.55,146.5,12.31058528]
[1750818043051,45.24232654,146.55,146.5,12.31058528]
[1750818043653,38.39264215,146.55,146.5,12.31058528]
[1750818043842,43.8776032,146.55,146.5,12.31058528]
[1750818044353,45.24232866,146.55,146.5,12.31058528]
[1750818044655,5.48496105,146.54,146.49,5.48496105]
[1750818045250,5.48496105,146.53,146.49,5.48496105]
[1750818045652,5.48496105,146.54,146.5,6.82593856]
[1750818046952,5.48496105,146.53,146.49,12.31114556]
[1750818047151,5.48496105,146.53,146.49,6.82618451]
[1750818047353,5.48496105,146.52,146.49,6.82618451]
[1750818048849,1.3648214,146.54,146.49,6.82618451]
[1750818049147,5.48496105,146.53,146.49,6.82618451]
[1750818050450,5.48496105,146.52,146.48,6.82674256]
[1750818050850,5.48496105,146.52,146.47,12.3120982]
[1750818051052,1.618,146.51,146.47,12.3120982]
[1750818051250,5.48496105,146.5,146.46,6.827572]
[1750818051556,5.48496105,146.49,146.44,5.48496105]
[1750818051766,5.48496105,146.48,146.42,10.08419279]
[1750818051936,5.48496105,146.47,146.42,12.31441451]
[1750818052261,5.48496105,146.46,146.42,12.31441451]
[1750818052965,32.85050155,146.47,146.42,12.31441451]
[1750818053255,5.48496105,146.46,146.41,5.48496105]
[1750818054050,5.48496105,146.46,146.41,12.31488694]
[1750818054648,27.3655405,146.47,146.41,12.31488694]
[1750818054956,5.48496105,146.46,146.41,12.31488694]
[1750818055957,6.85052548,146.46,146.41,12.31488694]
[1750818059553,31.48496105,146.47,146.43,5.48496105]
[1750818060255,32.85042947,146.47,146.43,5.48496105]
[1750818060463,31.48496105,146.47,146.43,5.48496105]
[1750818061068,5.48496105,146.46,146.41,12.3150956]
[1750818061666,31.48496105,146.47,146.42,5.48496105]
[1750818061876,32.85043913,146.47,146.42,5.48496105]
[1750818062172,5.48496105,146.45,146.41,5.48496105]
[1750818062759,5.48496105,146.44,146.4,5.48496105]
[1750818062945,7.14836105,146.44,146.4,5.48496105]
[1750818063156,7.14836105,146.44,146.4,12.31529454]
[1750818063543,6.4731,146.43,146.39,12.31582098]
[1750818064164,1.6634,146.44,146.41,5.48496105]
[1750818064369,1.6634,146.44,146.39,6.83085993]
[1750818064677,1.6634,146.44,146.4,5.48496105]
[1750818065051,1.6634,146.44,146.41,6.83013455]
[1750818065361,1.6634,146.44,146.41,12.3150956]
[1750818065860,32.2827,146.46,146.42,5.48496105]
[1750818066058,5.48496105,146.47,146.42,5.48496105]
[1750818066059,6.4274,146.5,146.45,5.48496105]
[1750818066371,6.4274,146.5,146.48,5.48496105]
[1750818066561,6.4274,146.5,146.46,5.48496105]
[1750818067351,6.4274,146.5,146.47,6.82733665]
[1750818068467,6.4274,146.5,146.47,12.3122977]
[1750818068856,9.67021625,146.51,146.48,5.48496105]
[1750818069277,9.67021625,146.51,146.49,5.48496105]
[1750818069775,9.67021625,146.51,146.47,5.48496105]
[1750818069975,9.67021625,146.51,146.43,23.90220582]
[1750818069976,15.1551773,146.51,146.46,5.48496105]
[1750818070354,15.1551773,146.51,146.47,5.48496105]
[1750818070773,9.67021625,146.51,146.47,5.48496105]
[1750818071077,9.67021625,146.51,146.48,5.48496105]
[1750818071956,9.67021625,146.51,146.47,12.31200919]
[1750818073181,9.67021625,146.51,146.48,5.48496105]
[1750818074377,9.67021625,146.51,146.46,6.82780281]
[1750818074556,9.67021625,146.51,146.47,5.48496105]
[1750818074758,9.67021625,146.51,146.46,6.82780281]
[1750818075055,9.67021625,146.51,146.47,5.48496105]
[1750818076076,9.67021625,146.51,146.48,5.48496105]
[1750818077659,11.03533204,146.51,146.47,12.31200789]
[1750818078271,11.03533204,146.51,146.47,5.48496105]
[1750818080986,16.52029309,146.51,146.47,5.48496105]
[1750818081375,16.52029309,146.51,146.47,12.31219086]
[1750818081890,11.03533204,146.51,146.47,12.31219086]
[1750818082283,11.03533204,146.51,146.43,23.9020416]
[1750818082468,11.03533204,146.51,146.47,5.48496105]
[1750818083384,9.67021625,146.51,146.47,5.48496105]
[1750818083764,11.0353208,146.51,146.47,5.48496105]
[1750818084161,9.67021625,146.51,146.48,5.48496105]
[1750818086389,11.03531085,146.51,146.47,12.31202108]
[1750818086559,16.5202719,146.51,146.47,6.82706003]
[1750818087586,11.03531085,146.51,146.47,5.48496105]
[1750818088969,11.03531085,146.51,146.47,12.31228561]
[1750818089576,9.67021625,146.51,146.47,12.31228561]
[1750818091501,9.67021625,146.51,146.49,5.48496105]
[1750818091702,27.5184,146.52,146.49,5.48496105]
[1750818092490,28.88340785,146.52,146.49,5.48496105]
[1750818092698,28.88340785,146.52,146.48,5.48496105]
[1750818094181,34.3683689,146.52,146.47,12.31228561]
[1750818095405,28.88340785,146.52,146.48,5.48496105]
[1750818095997,27.5184,146.52,146.48,5.48496105]
[1750818097604,27.5184,146.52,146.48,12.31157653]
[1750818098690,1.5184,146.52,146.49,5.48496105]
[1750818099003,33.75341755,146.54,146.5,5.48496105]
[1750818099206,39.2383786,146.54,146.49,5.48496105]
[1750818099508,5.48496105,146.53,146.49,5.48496105]
[1750818099890,5.48496105,146.51,146.47,5.48496105]
[1750818100099,5.48496105,146.51,146.46,12.31276386]
[1750818101113,6.85010818,146.51,146.46,12.31276386]
[1750818101510,5.48496105,146.5,146.46,12.31276386]
[1750818102714,6.85015095,146.5,146.45,5.48496105]
[1750818103000,5.48496105,146.49,146.44,5.48496105]
[1750818103913,5.48496105,146.49,146.45,12.31284312]
[1750818104093,8.44565095,146.5,146.45,12.31284312]
[1750818106580,8.44565095,146.5,146.42,23.90382031]
[1750818106805,8.44565095,146.5,146.43,2.52294551]
[1750818106806,5.48496105,146.49,146.43,2.52294551]
[1750818106985,5.48496105,146.47,146.43,5.48496105]
[1750818107595,11.70096105,146.48,146.43,5.48496105]
[1750818107796,11.70096105,146.48,146.43,12.31380233]
[1750818108000,11.70096105,146.48,146.44,5.48496105]
[1750818109000,13.06635931,146.48,146.43,12.31380233]
[1750818109197,5.48496105,146.46,146.42,12.31444406]
[1750818109406,5.48496105,146.46,146.43,2.52424732]
[1750818109610,5.48496105,146.46,146.42,12.31444406]
[1750818109798,5.48496105,146.46,146.43,2.52718531]
[1750818109991,6.85052744,146.46,146.42,12.31444406]
[1750818110196,5.48496105,146.45,146.41,6.83004828]
[1750818110403,5.48496105,146.45,146.42,2.52616514]
[1750818110604,6.85052744,146.46,146.41,12.31500933]
[1750818110810,5.48496105,146.45,146.42,2.52617948]
[1750818111016,5.48496105,146.45,146.41,12.31500933]
[1750818111207,5.48496105,146.45,146.42,2.52620996]
[1750818111410,5.48496105,146.45,146.41,12.31500933]
[1750818111616,5.48496105,146.45,146.42,2.52646558]
[1750818111910,5.48496105,146.45,146.41,12.31500933]
[1750818112112,1.36556639,146.46,146.41,12.31500933]
[1750818112317,5.48496105,146.45,146.41,12.31500933]
[1750818112492,6.85052744,146.46,146.41,12.31500933]
[1750818112816,6.85052744,146.46,146.42,2.52633482]
[1750818113009,6.85052744,146.46,146.41,12.31500933]
[1750818113514,6.85052744,146.46,146.42,5.48496105]
[1750818115019,1.36548652,146.47,146.42,12.31434471]
[1750818115222,6.216,146.48,146.44,5.48496105]
[1750818115394,6.216,146.48,146.45,5.48496105]
[1750818116413,6.216,146.48,146.45,12.31288819]
[1750818116617,7.08046105,146.5,146.46,5.48496105]
[1750818116995,33.08046105,146.5,146.45,12.31288819]
[1750818117722,27.5955,146.5,146.46,5.48496105]
[1750818118020,1.5955,146.5,146.47,5.48496105]
[1750818118525,1.5955,146.5,146.47,12.31225225]
[1750818118827,1.5955,146.5,146.48,5.48496105]
[1750818119030,6.1397,146.52,146.49,5.48496105]
[1750818119236,1.528,146.54,146.51,5.48496105]
[1750818119538,6.5141,146.56,146.52,5.48496105]
[1750818120221,7.8787791,146.56,146.52,5.48496105]
[1750818120430,13.36374015,146.56,146.51,5.48496105]
[1750818120817,6.5141,146.56,146.52,5.48496105]
[1750818121432,6.5141,146.56,146.53,5.48496105]
[1750818121624,39.47731482,146.58,146.54,5.48496105]
[1750818121625,1.528,146.58,146.54,5.48496105]
[1750818121958,1.528,146.58,146.55,5.48496105]
[1750818122324,1.528,146.58,146.49,44.64964886]
[1750818122521,2.8924604,146.58,146.52,5.48496105]
[1750818122734,5.48496105,146.57,146.52,5.48496105]
[1750818123550,5.48496105,146.55,146.48,6.82687056]
[1750818123716,5.48496105,146.53,146.49,5.48496105]
[1750818124138,26.0,146.55,146.5,5.48496105]
[1750818124328,31.48496105,146.55,146.5,5.48496105]
[1750818124527,32.84974424,146.55,146.5,5.48496105]
[1750818125048,27.36478319,146.55,146.5,12.31080181]
[1750818125248,5.48496105,146.54,146.5,12.31080181]
[1750818126649,6.84978147,146.54,146.49,12.31120634]
[1750818127052,5.48496105,146.54,146.49,12.31120634]
[1750818127348,5.48496105,146.54,146.5,5.48496105]
[1750818128453,5.48496105,146.54,146.49,5.48496105]
[1750818129726,5.48496105,146.54,146.5,12.31074567]
[1750818131347,6.84977948,146.54,146.49,12.31119352]
[1750818131552,5.48496105,146.51,146.46,12.31276386]
[1750818132074,11.87716105,146.48,146.43,5.48496105]
[1750818133142,11.87716105,146.48,146.44,6.82873531]
[1750818134129,13.24255605,146.48,146.43,6.82900658]
[1750818134329,11.87716105,146.48,146.43,12.31396763]
[1750818135735,11.87716105,146.48,146.43,5.48496105]
[1750818135960,6.3922,146.48,146.44,5.48496105]
[1750818137935,6.3922,146.48,146.44,12.31351788]
[1750818138343,13.24253817,146.48,146.44,6.82855683]
[1750818139379,11.87716105,146.48,146.44,6.82855683]
[1750818139536,6.3922,146.48,146.44,12.31351788]
[1750818143063,6.3922,146.48,146.45,5.48496105]
[1750818143274,11.84106105,146.52,146.47,5.48496105]
[1750818143479,6.3561,146.52,146.48,5.48496105]
[1750818144166,6.3561,146.52,146.49,6.82640453]
[1750818144375,6.3561,146.52,146.49,12.31136558]
[1750818144662,1.6446,146.53,146.49,12.31136558]
[1750818145237,1.6446,146.53,146.5,5.48496105]
[1750818145941,1.6446,146.53,146.49,12.31136558]
[1750818147078,1.6446,146.53,146.5,5.48496105]
[1750818148658,1.6446,146.53,146.5,12.31062587]
[1750818153163,26.0,146.55,146.5,12.31062587]
[1750818153371,27.601,146.55,146.51,5.48496105]
[1750818153867,1.601,146.55,146.52,5.48496105]
[1750818154068,13.62596105,146.59,146.5,49.89051123]
[1750818154274,7.08596105,146.59,146.54,5.48496105]
[1750818154457,1.601,146.59,146.55,5.48496105]
[1750818155039,1.601,146.59,146.55,12.30816992]
[1750818155273,7.08596105,146.59,146.55,6.82320887]
[1750818155772,1.601,146.59,146.55,6.82320887]
[1750818155980,7.08596105,146.59,146.55,6.82320887]
[1750818156548,1.601,146.59,146.55,6.82320887]
[1750818156762,7.08596105,146.59,146.55,6.82320887]
[1750818157158,7.08596105,146.59,146.52,17.06190699]
[1750818157350,5.48496105,146.58,146.53,5.48496105]
[1750818158273,5.48496105,146.54,146.5,5.48496105]
[1750818158859,5.48496105,146.55,146.5,5.48496105]
[1750818159058,31.48496105,146.55,146.5,5.48496105]
[1750818159672,32.84971734,146.55,146.5,12.31065845]
[1750818160663,27.36475629,146.55,146.5,12.31065845]
[1750818160870,32.84971734,146.55,146.5,12.31065845]
[1750818162090,32.84971734,146.55,146.5,5.48496105]
[1750818162473,6.98816105,146.53,146.48,12.31153593]
[1750818162995,5.48496105,146.5,146.46,5.48496105]
[1750818163287,5.48496105,146.5,146.45,5.48496105]
[1750818163450,5.48496105,146.49,146.44,6.82853036]
[1750818163652,5.48496105,146.48,146.44,5.48496105]
[1750818164075,6.85035762,146.48,146.43,12.31394663]
[1750818164379,13.42745762,146.48,146.43,5.48496105]
[1750818165062,13.42745762,146.48,146.43,12.3141418]
[1750818165259,6.5771,146.48,146.43,12.3141418]
[1750818165487,6.5771,146.48,146.45,5.48496105]
[1750818166278,6.5771,146.48,146.44,12.31330847]
[1750818168161,6.5771,146.48,146.45,5.48496105]
[1750818168677,13.42745819,146.48,146.43,5.48496105]
[1750818168886,1.5407,146.47,146.43,5.48496105]
[1750818170063,1.5407,146.47,146.43,12.31415083]
[1750818170983,1.5407,146.47,146.44,5.48496105]
[1750818171566,1.5407,146.47,146.43,6.82918978]
[1750818171787,1.5407,146.47,146.45,5.48496105]
[1750818172284,1.5407,146.47,146.45,12.31321848]
[1750818172487,6.5771,146.48,146.45,12.31321848]
[1750818172657,6.5771,146.48,146.45,5.48496105]
[1750818176087,1.5553,146.51,146.47,5.48496105]
[1750818176486,1.5553,146.51,146.47,12.31226002]
[1750818176687,1.5553,146.51,146.46,5.48496105]
[1750818176688,8.40536845,146.51,146.46,5.48496105]
[1750818177068,5.48496105,146.5,146.44,6.82873531]
[1750818177281,5.48496105,146.5,146.45,5.48496105]
[1750818177481,8.40536845,146.51,146.46,5.48496105]
[1750818177879,1.5553,146.51,146.47,5.48496105]
[1750818178187,26.0,146.53,146.5,5.48496105]
[1750818178576,27.36492305,146.53,146.49,5.48496105]
[1750818180492,26.0,146.53,146.49,12.31127215]
[1750818181390,1.5334,146.55,146.52,5.48496105]
[1750818181581,1.36448212,146.58,146.54,5.48496105]
[1750818181793,6.84944317,146.58,146.46,26.68259468]
[1750818181990,5.48496105,146.55,146.51,5.48496105]
[1750818182189,5.48496105,146.56,146.52,5.48496105]
[1750818182592,5.48496105,146.56,146.51,5.48496105]
[1750818182781,5.48496105,146.55,146.5,5.48496105]
[1750818183671,6.84974924,146.55,146.5,12.31086472]
[1750818184075,6.84974924,146.55,146.5,5.48496105]
[1750818184285,31.48496105,146.54,146.49,5.48496105]
[1750818185000,5.48496105,146.53,146.48,12.31144542]
[1750818185391,5.48496105,146.53,146.48,5.48496105]
[1750818185704,5.48496105,146.52,146.47,12.31210087]
[1750818186398,6.85001097,146.52,146.47,12.31210087]
[1750818188093,5.48496105,146.51,146.44,26.0]
[1750818188313,5.48496105,146.48,146.43,6.82920166]
[1750818188480,5.48496105,146.48,146.44,5.48496105]
[1750818188678,5.48496105,146.49,146.44,5.48496105]
[1750818188879,44.64964886,146.51,146.44,5.48496105]
[1750818189087,5.48496105,146.49,146.44,5.48496105]
[1750818189487,1.36537411,146.48,146.44,5.48496105]
[1750818189694,6.85033516,146.48,146.44,5.48496105]
[1750818189887,6.85033516,146.48,146.43,12.31416271]
[1750818192582,6.85033516,146.48,146.42,5.48496105]
[1750818192583,7.02316105,146.47,146.42,5.48496105]
[1750818192912,5.48496105,146.46,146.42,5.48496105]
[1750818194387,6.85052256,146.46,146.42,5.48496105]
[1750818194679,5.48496105,146.45,146.41,11.94496105]
[1750818194878,5.48496105,146.45,146.41,13.2901161]
[1750818195078,5.48496105,146.45,146.41,18.77507715]
[1750818196985,8.1876,146.47,146.43,5.48496105]
[1750818197598,15.03803198,146.47,146.42,5.48496105]
[1750818197803,5.48496105,146.46,146.42,5.48496105]
[1750818198299,41.03803198,146.47,146.42,12.31442823]
[1750818201411,15.03803198,146.47,146.42,12.31442823]
[1750818203280,6.85053962,146.46,146.42,5.48496105]
[1750818204014,6.85053962,146.46,146.42,12.31452262]
[1750818204184,6.85053962,146.46,146.42,6.82956157]
[1750818204390,6.85053962,146.46,146.42,12.31452262]
[1750818205024,6.85053962,146.46,146.41,6.46]
[1750818205314,5.48496105,146.45,146.4,12.31509868]
[1750818205615,6.85053962,146.46,146.41,5.48496105]
[1750818208710,5.48496105,146.45,146.4,12.31509868]
[1750818209111,6.85068562,146.45,146.4,5.48496105]
[1750818211422,8.1876,146.47,146.41,5.48496105]
[1750818211600,8.1876,146.47,146.4,6.8305169]
[1750818211601,13.67256105,146.47,146.42,5.48496105]
[1750818211995,5.48496105,146.46,146.41,5.48496105]
[1750818212723,5.48496105,146.46,146.42,6.82966807]
[1750818214825,6.85052873,146.46,146.41,5.48496105]
[1750818215423,5.48496105,146.45,146.4,5.48496105]
[1750818216820,6.85063405,146.45,146.4,12.31517299]
[1750818218818,6.85063405,146.45,146.39,17.07673677]
[1750818218819,6.85063405,146.45,146.39,23.90780446]
[1750818219025,6.85063405,146.45,146.4,5.48496105]
[1750818219917,5.48496105,146.44,146.39,12.31602874]
[1750818220319,5.48496105,146.43,146.38,36.59047259]
[1750818221206,6.85080159,146.43,146.38,36.59047259]
[1750818224719,26.0,146.45,146.38,24.27415615]
[1750818224720,7.9802,146.41,146.38,24.27415615]
[1750818225030,5.48496105,146.4,146.38,24.27415615]
[1750818225900,5.48496105,146.39,146.38,24.27415615]
[1750818227224,31.48496105,146.39,146.38,24.27415615]
[1750818228509,5.48496105,146.4,146.38,24.27415615]
[1750818228711,39.46516105,146.41,146.38,24.27415615]
[1750818228922,9.30010422,146.45,146.39,5.48496105]
[1750818229118,13.41936105,146.45,146.4,5.48496105]
[1750818229317,31.48496105,146.44,146.4,5.48496105]
[1750818229830,5.48496105,146.44,146.4,5.48496105]
[1750818230007,5.48496105,146.44,146.39,5.48496105]
[1750818230212,31.48496105,146.44,146.39,5.48496105]
[1750818230420,31.48496105,146.44,146.4,6.83060109]
[1750818232031,5.48496105,146.43,146.4,6.83060109]
[1750818232244,5.48496105,146.43,146.39,12.31582709]
[1750818232531,5.48496105,146.42,146.39,6.83086604]
[1750818232723,5.48496105,146.43,146.39,6.83086604]
[1750818232926,5.48496105,146.42,146.39,6.83086604]
[1750818233525,5.48496105,146.42,146.38,24.27415615]
[1750818233526,5.48496105,146.4,146.38,24.27415615]
[1750818234319,5.48496105,146.39,146.38,24.27415615]
[1750818235606,6.85117458,146.39,146.38,24.27415615]
[1750818238638,25.50082344,146.39,146.38,24.27415615]
[1750818238825,34.0281,146.4,146.35,5.48496105]
[1750818239032,39.51306105,146.4,146.36,6.83246788]
[1750818239216,39.51306105,146.4,146.35,12.31770457]
[1750818239611,5.48496105,146.39,146.35,6.83274352]
[1750818239808,5.48496105,146.39,146.34,12.31814415]
[1750818240036,5.48496105,146.38,146.34,6.8331831]
[1750818240237,5.48496105,146.39,146.34,12.31814415]
[1750818240635,5.48496105,146.39,146.35,5.48496105]
[1750818241240,5.48496105,146.39,146.35,12.31769485]
[1750818241742,40.87922506,146.4,146.35,12.31769485]
[1750818242911,40.87922506,146.4,146.35,5.48496105]
[1750818243114,35.39426401,146.4,146.35,5.48496105]
[1750818243343,5.48496105,146.39,146.35,5.48496105]
[1750818243637,5.48496105,146.39,146.31,13.27460489]
[1750818243638,5.48496105,146.36,146.31,13.27460489]
[1750818243942,6.0563,146.34,146.3,5.48496105]
[1750818244146,6.0563,146.34,146.31,5.48496105]
[1750818244323,6.0563,146.34,146.3,5.48496105]
[1750818244516,11.54126105,146.34,146.29,5.48496105]
[1750818244814,5.48496105,146.33,146.27,23.92835167]
[1750818245015,1.36679444,146.33,146.26,12.32188322]
[1750818245239,32.0563,146.34,146.3,5.48496105]
[1750818245434,32.0563,146.34,146.26,23.92977052]
[1750818245638,38.90794602,146.34,146.3,5.48496105]
[1750818245848,38.90794602,146.34,146.29,5.48496105]
[1750818246030,37.54126105,146.34,146.29,5.48496105]
[1750818246229,37.54126105,146.34,146.3,5.48496105]
[1750818246733,37.54126105,146.34,146.26,23.92977052]
[1750818246932,38.90794777,146.34,146.29,12.32039723]
[1750818247729,38.90794777,146.34,146.29,6.83543618]
[1750818248044,5.48496105,146.33,146.28,12.32096223]
[1750818249133,5.48496105,146.33,146.28,5.48496105]
[1750818249341,6.85176655,146.33,146.28,5.48496105]
[1750818249529,5.48496105,146.32,146.28,5.48496105]
[1750818249731,5.48496105,146.32,146.27,5.48496105]
[1750818250255,1.3668055,146.33,146.27,5.48496105]
[1750818250552,32.0563,146.34,146.31,5.48496105]
[1750818251245,32.0563,146.34,146.31,12.3193877]
[1750818251754,1.5996,146.35,146.32,5.48496105]
[1750818251924,1.5996,146.35,146.33,5.48496105]
[1750818252125,1.5996,146.35,146.32,5.48496105]
[1750818253131,1.5996,146.35,146.32,12.31889862]
[1750818259251,7.9598,146.38,146.34,5.48496105]
[1750818259748,7.9598,146.38,146.34,12.31810381]
[1750818263534,13.44476105,146.38,146.34,12.31810381]
[1750818263745,13.44476105,146.38,146.34,6.83314276]
[1750818263926,7.9598,146.38,146.34,6.83314276]
[1750818264129,13.44476105,146.38,146.34,6.83314276]
[1750818264567,5.48496105,146.37,146.32,5.48496105]
[1750818264768,5.48496105,146.35,146.29,6.83573723]
[1750818264936,5.48496105,146.35,146.3,5.48496105]
[1750818265531,6.85158779,146.35,146.3,12.32004008]
[1750818266440,5.48496105,146.34,146.3,6.83507903]
[1750818266638,6.85167272,146.34,146.3,6.83507903]
[1750818267041,6.85157671,146.35,146.3,12.32004008]
[1750818268158,6.85157671,146.35,146.31,5.48496105]
[1750818268958,6.85157671,146.35,146.28,6.83620453]
[1750818269160,6.85157671,146.35,146.31,5.48496105]
[1750818269363,6.85157671,146.35,146.31,12.31975061]
[1750818270957,6.85157671,146.35,146.3,5.48496105]
[1750818272052,13.44476105,146.38,146.33,5.48496105]
[1750818272254,7.9598,146.38,146.34,5.48496105]
[1750818273149,7.9598,146.38,146.36,5.48496105]
[1750818273357,29.86943892,146.42,146.37,5.48496105]
[1750818273358,20.17746262,146.42,146.37,5.48496105]
[1750818273658,18.81149006,146.42,146.37,5.48496105]
[1750818273844,50.29645111,146.42,146.37,5.48496105]
[1750818274044,50.29645111,146.42,146.38,6.83153436]
[1750818274246,24.29645111,146.42,146.38,6.83153436]
[1750818274454,50.29645111,146.42,146.38,6.83153436]
[1750818274759,44.81149006,146.42,146.38,12.31649541]
[1750818275967,50.29645111,146.42,146.38,6.83153436]
[1750818277557,44.81149006,146.42,146.38,12.31649541]
[1750818278868,44.81149006,146.42,146.4,5.48496105]
[1750818278869,11.21979006,146.42,146.4,5.48496105]
[1750818279046,1.5748,146.46,146.41,5.48496105]
[1750818279246,146.2,146.49,146.44,5.48496105]
[1750818279464,6.6289,146.5,146.45,5.48496105]
[1750818279660,7.99408797,146.5,146.4,5.48496105]
[1750818279857,7.99408797,146.5,146.43,5.48496105]
[1750818279858,5.48496105,146.47,146.43,5.48496105]
[1750818280178,5.48496105,146.48,146.43,5.48496105]
[1750818280374,5.48496105,146.47,146.39,26.0]
[1750818280667,5.48496105,146.46,146.41,5.48496105]
[1750818280874,5.48496105,146.46,146.42,6.82966807]
[1750818281047,31.48496105,146.48,146.43,5.48496105]
[1750818281245,26.0,146.48,146.45,5.48496105]
[1750818282759,6.6289,146.5,146.47,6.82733665]
[1750818283458,27.5748,146.51,146.47,12.3122977]
[1750818284572,33.05976105,146.51,146.47,6.82733665]
[1750818284758,34.42488169,146.51,146.46,12.31267425]
[1750818284960,33.05976105,146.51,146.46,12.31267425]
[1750818285564,16.72102189,146.54,146.48,5.48496105]
[1750818285749,26.0,146.53,146.49,5.48496105]
[1750818286148,26.0,146.53,146.46,27.35999572]
[1750818286149,31.48496105,146.53,146.48,5.48496105]
[1750818287069,31.48496105,146.53,146.48,12.31148306]
[1750818287572,32.84987947,146.53,146.48,12.31148306]
[1750818289172,26.0,146.53,146.49,5.48496105]
[1750818289375,31.48496105,146.53,146.49,5.48496105]
[1750818289872,31.48496105,146.53,146.48,12.31148306]
[1750818290066,32.84991615,146.53,146.48,12.31148306]
[1750818290577,31.48496105,146.53,146.48,12.31148306]
[1750818290875,32.8499068,146.53,146.48,12.31148306]
[1750818291073,31.48496105,146.53,146.48,6.82652201]
[1750818291376,31.48496105,146.53,146.48,12.31148306]
[1750818292475,26.0,146.53,146.49,5.48496105]
[1750818293878,26.0,146.53,146.49,12.31112538]
[1750818296180,31.48496105,146.53,146.49,6.82616433]
[1750818296854,26.0,146.53,146.49,12.31112538]
[1750818297191,31.3919609,146.55,146.5,5.48496105]
[1750818297491,26.0,146.52,146.49,12.31112538]
[1750818297791,26.0,146.52,146.48,12.31168748]
[1750818298078,26.0,146.52,146.49,5.48496105]
[1750818300085,26.0,146.52,146.49,12.31124279]
[1750818300584,26.0,146.52,146.49,6.82628174]
[1750818301089,26.0,146.54,146.5,5.48496105]
[1750818301281,31.48496105,146.54,146.49,12.31124279]
[1750818301581,6.5349,146.58,146.52,5.48496105]
[1750818301781,6.5349,146.58,146.54,5.48496105]
[1750818301965,7.02026105,146.59,146.55,6.82360968]
[1750818302282,33.02026105,146.59,146.55,6.82360968]
[1750818302484,1.36420296,146.61,146.55,6.82360968]
[1750818302791,31.48496105,146.6,146.55,12.30857073]
[1750818303763,32.84921896,146.6,146.55,12.30857073]
[1750818303965,5.48496105,146.59,146.52,1.477]
[1750818304181,5.48496105,146.58,146.53,5.48496105]
[1750818304366,5.48496105,146.58,146.51,6.82547266]
[1750818304567,5.48496105,146.58,146.53,5.48496105]
[1750818305371,6.84941208,146.58,146.53,12.30920072]
[1750818305673,31.48496105,146.57,146.5,23.42480574]
[1750818305877,31.48496105,146.57,146.53,5.48496105]
[1750818306074,26.0,146.57,146.53,5.48496105]
[1750818307286,26.0,146.57,146.54,5.48496105]
[1750818310174,26.0,146.57,146.54,12.30899409]
[1750818310882,28.48,146.61,146.55,5.48496105]
[1750818311186,11.63156105,146.62,146.57,5.48496105]
[1750818311382,7.51070905,146.62,146.58,5.48496105]
[1750818311886,38.9956701,146.62,146.57,5.48496105]
[1750818312266,5.48496105,146.61,146.57,5.48496105]
[1750818312893,5.48496105,146.65,146.6,5.48496105]
[1750818313092,12.09486105,146.66,146.62,5.48496105]
[1750818313302,32.6099,146.66,146.61,5.48496105]
[1750818313471,39.45857415,146.66,146.61,12.30560817]
[1750818313674,13.45857415,146.66,146.61,12.30560817]
[1750818313988,39.45857415,146.66,146.61,12.30560817]
[1750818314494,5.48496105,146.64,146.56,6.34]
[1750818314690,5.48496105,146.63,146.58,5.48496105]
[1750818314989,31.48496105,146.63,146.56,6.34]
[1750818315301,31.48496105,146.63,146.58,5.48496105]
[1750818315499,6.84903143,146.62,146.56,6.82299294]
[1750818315666,5.48496105,146.6,146.56,5.48496105]
[1750818316782,6.84906214,146.62,146.57,5.48496105]
[1750818317991,6.84906214,146.62,146.57,12.30763497]
[1750818318997,6.84906214,146.62,146.57,5.48496105]
[1750818320499,1.36410109,146.62,146.57,12.30762493]
[1750818320703,6.84906214,146.62,146.57,12.30762493]
[1750818320900,1.36410109,146.62,146.58,5.48496105]
[1750818321193,50.13460991,146.63,146.59,5.48496105]
[1750818321194,26.0,146.63,146.59,5.48496105]
[1750818321394,13.45857786,146.66,146.61,5.48496105]
[1750818322003,1.5456,146.67,146.64,5.48496105]
[1750818322183,27.5456,146.67,146.64,5.48496105]
[1750818322385,1.5456,146.67,146.64,5.48496105]
[1750818322888,26.0,146.66,146.64,5.48496105]
[1750818323086,6.84842346,146.69,146.64,5.48496105]
[1750818323497,1.36346241,146.69,146.64,5.48496105]
[1750818323696,6.84842346,146.69,146.64,5.48496105]
[1750818324382,6.84842346,146.69,146.64,12.30428848]
[1750818325598,1.36346241,146.69,146.65,5.48496105]
[1750818326906,31.48496105,146.67,146.61,6.82081713]
[1750818327087,5.48496105,146.65,146.61,5.48496105]
[1750818327398,5.48496105,146.66,146.61,5.48496105]
[1750818328902,6.84868317,146.66,146.61,12.30558286]
[1750818329593,6.4111,146.7,146.65,5.48496105]
[1750818329805,8.39841607,146.71,146.61,23.87266464]
[1750818330103,33.03516105,146.71,146.66,5.48496105]
[1750818330289,27.5502,146.71,146.67,5.48496105]
[1750818330607,28.91343773,146.71,146.67,5.48496105]